bitfinex/quotes_SOLUSD_20240603
["timestamp","ask_amount","ask_price","bid_price","bid_amount"]
[1717454419861,2.2359,165.48,165.44,9.41019295]
[1717454420340,25.39,165.49,165.44,9.41019295]
[1717454420341,27.6258,165.49,165.44,9.41019295]
[1717454420848,22.2358,165.49,165.44,9.41019295]
[1717454421056,2.2359,165.48,165.44,9.41019295]
[1717454421252,22.2359,165.48,165.44,9.41019295]
[1717454422857,2.2359,165.48,165.44,9.41019295]
[1717454423550,22.2359,165.48,165.44,9.41019295]
[1717454424563,20.0,165.48,165.44,11.64659295]
[1717454424859,2.2355,165.51,165.45,9.99791116]
[1717454425072,2.2354,165.52,165.47,5.39]
[1717454425369,2.2354,165.52,165.48,0.34]
[1717454425950,2.2354,165.52,165.48,5.73]
[1717454426161,2.2353,165.53,165.48,5.73]
[1717454426348,22.2353,165.53,165.48,5.73]
[1717454426548,2.2353,165.53,165.48,5.73]
[1717454427063,2.2353,165.52,165.48,5.73]
[1717454427968,2.2353,165.52,165.48,0.34]
[1717454428175,2.2353,165.52,165.48,5.73]
[1717454431471,2.2353,165.52,165.48,0.34]
[1717454431644,2.2353,165.52,165.48,5.73]
[1717454439062,2.2353,165.52,165.48,11.9782]
[1717454440160,2.2353,165.52,165.48,6.5882]
[1717454440379,2.2353,165.52,165.48,11.9782]
[1717454441083,2.2353,165.52,165.48,6.5882]
[1717454441259,2.2355,165.51,165.48,0.34]
[1717454441677,2.2356,165.5,165.47,0.34]
[1717454442068,7.6255,165.51,165.47,0.34]
[1717454442378,2.2356,165.5,165.47,0.34]
[1717454442562,7.6255,165.51,165.47,0.34]
[1717454443180,2.2355,165.51,165.47,0.34]
[1717454447095,7.6255,165.51,165.47,0.34]
[1717454447304,7.6255,165.51,165.46,0.34]
[1717454448190,2.2357,165.5,165.46,0.34]
[1717454448399,27.6257,165.5,165.46,0.34]
[1717454448603,27.6257,165.5,165.45,9.07092955]
[1717454448905,5.39,165.48,165.45,9.07092955]
[1717454449111,5.39,165.48,165.44,11.30732955]
[1717454449273,7.6258,165.49,165.44,11.30732955]
[1717454450806,7.6258,165.49,165.44,9.07092955]
[1717454451480,5.39,165.48,165.44,9.07092955]
[1717454452781,5.39,165.48,165.44,11.30732955]
[1717454454206,5.39,165.48,165.44,9.07092955]
[1717454454596,5.39,165.48,165.44,9.07179755]
[1717454455108,7.6258,165.49,165.44,9.07179755]
[1717454460916,2.2358,165.49,165.44,9.07179755]
[1717454461301,7.6258,165.49,165.44,9.07179755]
[1717454461606,5.39,165.46,165.43,9.24179755]
[1717454461812,5.39,165.46,165.43,9.07179755]
[1717454462024,5.39,165.46,165.41,3.28843403]
[1717454462185,5.39,165.46,165.42,0.34]
[1717454462498,2.2361,165.47,165.42,2.5767]
[1717454464339,20.0,165.49,165.42,0.17]
[1717454464340,2.2361,165.46,165.42,0.17]
[1717454464617,2.2361,165.46,165.41,2.2368]
[1717454466419,2.2361,165.46,165.4,2.5769]
[1717454468999,7.6264,165.44,165.4,0.34]
[1717454469524,5.39,165.43,165.4,0.34]
[1717454472029,2.2363,165.45,165.4,0.34]
[1717454472197,5.39,165.44,165.4,0.34]
[1717454476425,7.6264,165.44,165.4,0.34]
[1717454477420,2.2364,165.44,165.4,0.34]
[1717454477721,7.6264,165.44,165.4,0.34]
[1717454484025,2.2364,165.44,165.4,0.34]
[1717454484260,22.2364,165.44,165.4,0.34]
[1717454485149,20.0,165.44,165.41,6.1058]
[1717454485344,2.2361,165.47,165.42,6.4458]
[1717454485531,22.2361,165.47,165.42,8.6824]
[1717454485737,2.2361,165.47,165.42,8.6824]
[1717454486244,2.2361,165.47,165.42,6.4458]
[1717454487028,22.2361,165.47,165.42,6.4458]
[1717454487344,2.2362,165.46,165.42,6.4458]
[1717454488940,2.2362,165.46,165.43,0.50367246]
[1717454490751,2.2362,165.46,165.42,6.4458]
[1717454496833,2.2362,165.46,165.43,6.5355]
[1717454497558,2.2363,165.45,165.42,0.34]
[1717454498858,2.2363,165.45,165.43,0.34]
[1717454499031,2.2363,165.45,165.41,6.7932]
[1717454499754,22.2362,165.46,165.41,16.7201]
[1717454499940,2.2362,165.46,165.43,6.4532]
[1717454500130,2.2362,165.46,165.44,0.17]
[1717454502453,20.0,165.47,165.44,0.17]
[1717454502454,2.2363,165.45,165.44,0.17]
[1717454502750,2.2363,165.45,165.4,6.4532]
[1717454502960,2.2363,165.45,165.41,0.17]
[1717454504238,2.2363,165.45,165.41,0.34]
[1717454509953,2.2362,165.46,165.41,0.34]
[1717454510265,2.2362,165.46,165.41,2.5768]
[1717454510768,7.6262,165.46,165.41,2.5768]
[1717454511258,7.6262,165.46,165.41,0.34]
[1717454511671,2.2362,165.46,165.41,2.5768]
[1717454517586,2.2362,165.46,165.41,0.34]
[1717454517793,2.2362,165.46,165.41,2.5768]
[1717454518490,20.0,165.48,165.41,0.34]
[1717454518787,27.626,165.47,165.42,2.2366]
[1717454519363,27.626,165.47,165.41,2.5768]
[1717454519684,2.2361,165.46,165.41,2.5768]
[1717454521898,2.2361,165.46,165.41,0.34]
[1717454522426,2.2363,165.45,165.41,0.34]
[1717454522717,2.2363,165.45,165.4,0.34]
[1717454523406,2.2363,165.45,165.4,2.5769]
[1717454523706,2.2362,165.46,165.4,2.5769]
[1717454524412,2.2363,165.45,165.4,2.5769]
[1717454524798,2.2362,165.46,165.4,2.5769]
[1717454527321,7.6265,165.44,165.4,0.34]
[1717454527633,5.39,165.43,165.4,0.34]
[1717454528121,5.39,165.43,165.4,9.41479818]
[1717454528323,7.6266,165.43,165.4,9.24479818]
[1717454528530,7.6266,165.43,165.4,9.07479818]
[1717454531826,7.6266,165.43,165.39,9.07479818]
[1717454532035,7.6267,165.42,165.39,9.07479818]
[1717454532540,7.6267,165.42,165.38,0.34]
[1717454534229,5.39,165.42,165.38,0.34]
[1717454534546,7.6266,165.43,165.38,0.34]
[1717454535203,2.2367,165.42,165.38,0.34]
[1717454536322,7.6266,165.43,165.38,0.34]
[1717454540014,2.2367,165.42,165.38,0.34]
[1717454540521,7.6267,165.42,165.38,0.34]
[1717454541634,2.2366,165.43,165.38,0.34]
[1717454541931,5.39,165.42,165.38,0.34]
[1717454544751,2.2366,165.43,165.38,0.34]
[1717454545051,7.6266,165.43,165.38,0.34]
[1717454545937,2.2365,165.44,165.39,5.39]
[1717454546147,2.2365,165.44,165.4,2.75795054]
[1717454546335,2.2365,165.44,165.4,0.34]
[1717454547443,20.0,165.45,165.4,0.34]
[1717454547742,0.2,165.54,165.4,0.34]
[1717454547743,2.2361,165.47,165.41,7.6268]
[1717454547959,2.2361,165.47,165.42,7.07655393]
[1717454548138,2.2359,165.48,165.43,1.34647253]
[1717454548334,2.2359,165.48,165.44,0.34]
[1717454548754,2.2359,165.48,165.44,1.69689621]
[1717454550943,2.2359,165.48,165.44,2.7573864]
[1717454551447,2.236,165.47,165.44,2.7573864]
[1717454551955,11.1769,165.52,165.44,14.1755864]
[1717454552127,2.2358,165.49,165.45,11.4182]
[1717454552323,2.2357,165.5,165.46,0.17]
[1717454552523,2.2358,165.49,165.46,0.77474547]
[1717454553232,2.2358,165.49,165.46,1.98209542]
[1717454554257,22.2358,165.49,165.47,0.17]
[1717454554626,2.2358,165.49,165.47,0.17]
[1717454556653,20.0,165.51,165.47,6.1498]
[1717454556831,2.2355,165.51,165.48,0.34]
[1717454557454,2.2355,165.51,165.48,0.94540428]
[1717454559531,2.2355,165.51,165.48,1.32788234]
[1717454560638,2.2356,165.5,165.48,1.32788234]
[1717454563535,2.2356,165.5,165.48,2.39680418]
[1717454564578,2.2356,165.5,165.48,0.34]
[1717454564872,2.2356,165.5,165.47,0.34]
[1717454565165,2.2358,165.49,165.47,0.34]
[1717454565349,2.2359,165.48,165.44,6.1785]
[1717454566063,7.6258,165.49,165.44,6.1785]
[1717454566265,2.2359,165.48,165.44,6.1785]
[1717454566647,2.236,165.47,165.45,0.17]
[1717454566949,7.6259,165.48,165.45,0.34]
[1717454567454,7.6259,165.48,165.44,0.34]
[1717454567774,2.2359,165.48,165.44,0.34]
[1717454568368,7.6258,165.49,165.44,0.34]
[1717454572757,7.6258,165.49,165.44,2.5764]
[1717454573472,2.2358,165.49,165.44,8.7702]
[1717454573780,7.6258,165.49,165.44,8.7702]
[1717454575945,2.2358,165.49,165.44,8.7702]
[1717454576149,7.6258,165.49,165.44,8.7702]
[1717454579962,7.6258,165.49,165.42,16.0841]
[1717454579963,2.2362,165.46,165.42,5.39]
[1717454580275,5.39,165.49,165.38,5.52614767]
[1717454580276,24.4723,165.47,165.38,6.1938]
[1717454580573,6.7074,165.49,165.4,5.39]
[1717454580574,5.39,165.46,165.4,5.39]
[1717454580753,20.0,165.45,165.41,6.1938]
[1717454580953,5.39,165.47,165.41,6.1938]
[1717454581274,20.0,165.46,165.42,8.61136297]
[1717454581488,20.0,165.46,165.43,2.41741683]
[1717454581489,25.39,165.46,165.43,2.41741683]
[1717454581850,27.6262,165.46,165.42,6.1938]
[1717454582173,27.6262,165.46,165.43,0.34]
[1717454584453,5.39,165.45,165.43,0.34]
[1717454584654,7.6263,165.45,165.43,0.34]
[1717454584870,5.39,165.44,165.38,9.07352093]
[1717454585174,11.1818,165.45,165.37,15.22742093]
[1717454585175,2.2367,165.42,165.37,15.22742093]
[1717454585377,7.6267,165.42,165.37,6.1539]
[1717454585579,20.0,165.41,165.37,6.1539]
[1717454586094,20.0,165.41,165.38,0.34]
[1717454590591,20.0,165.41,165.38,0.17]
[1717454590759,22.2368,165.41,165.38,0.17]
[1717454590964,20.0,165.41,165.37,0.17]
[1717454591185,20.0,165.41,165.36,0.17]
[1717454592085,20.0,165.41,165.36,0.34]
[1717454593092,20.0,165.41,165.36,6.8684]
[1717454593389,20.0,165.41,165.37,6.5284]
[1717454593592,2.2367,165.42,165.38,0.34]
[1717454594090,22.2367,165.42,165.38,0.34]
[1717454594583,13.4159,165.48,165.38,0.34]
[1717454594804,6.1369,165.52,165.38,0.34]
[1717454594805,7.6261,165.47,165.41,5.39]
[1717454594959,2.2361,165.47,165.42,0.34]
[1717454595586,2.2361,165.47,165.42,6.4534]
[1717454595768,2.2362,165.46,165.42,6.4534]
[1717454596179,22.2362,165.46,165.42,6.4534]
[1717454596369,2.2362,165.46,165.42,6.4534]
[1717454597076,22.2362,165.46,165.42,6.4534]
[1717454598085,27.6262,165.46,165.42,6.4534]
[1717454601080,22.2362,165.46,165.42,6.4534]
[1717454601273,2.2362,165.46,165.42,6.4534]
[1717454601681,22.2362,165.46,165.42,6.4534]
[1717454601982,2.2362,165.46,165.42,6.4534]
[1717454602567,22.2362,165.46,165.42,6.4534]
[1717454603194,2.2358,165.49,165.45,5.39]
[1717454603368,2.2358,165.49,165.46,1.54505077]
[1717454603566,2.236,165.48,165.46,0.34]
[1717454603903,2.236,165.47,165.42,11.5034]
[1717454604066,2.236,165.47,165.43,0.34]
[1717454604268,7.626,165.47,165.43,0.34]
[1717454604571,2.2362,165.46,165.43,0.34]
[1717454604770,2.2361,165.47,165.43,0.34]
[1717454604992,7.6261,165.47,165.43,0.34]
[1717454605287,2.2361,165.47,165.43,0.34]
[1717454605491,2.2361,165.47,165.43,6.8468]
[1717454608698,22.2361,165.47,165.43,6.8468]
[1717454612979,2.2357,165.49,165.44,13.8636]
[1717454613283,2.2357,165.49,165.45,0.34]
[1717454614376,22.2357,165.49,165.45,0.34]
[1717454617815,27.6257,165.49,165.45,0.34]
[1717454620407,2.2359,165.48,165.45,0.34]
[1717454620902,7.6259,165.48,165.45,0.34]
[1717454623286,7.6259,165.48,165.44,0.34]
[1717454623894,2.2359,165.48,165.43,6.5772]
[1717454624201,7.6259,165.48,165.43,8.8137]
[1717454624706,5.39,165.48,165.43,8.8137]
[1717454625512,7.6259,165.48,165.43,8.8137]
[1717454627610,5.39,165.48,165.43,8.8137]
[1717454629301,7.6259,165.48,165.43,8.8137]
[1717454634444,2.2359,165.48,165.43,8.8137]
[1717454634602,7.6259,165.48,165.43,8.8137]
[1717454634802,5.39,165.48,165.43,8.8137]
[1717454635320,2.2358,165.49,165.43,8.8137]
[1717454635498,5.39,165.48,165.43,8.8137]
[1717454639300,7.6259,165.48,165.43,8.8137]
[1717454640118,2.2359,165.48,165.44,6.1696]
[1717454640327,7.6259,165.48,165.45,0.34]
[1717454642240,2.2359,165.48,165.45,0.34]
[1717454642525,7.6259,165.48,165.45,0.34]
[1717454644332,2.236,165.47,165.45,0.17]
[1717454644709,5.39,165.48,165.45,0.17]
[1717454644710,2.2361,165.46,165.45,0.17]
[1717454645020,27.6261,165.47,165.45,0.17]
[1717454650531,5.39,165.46,165.42,15.27052141]
[1717454650724,7.6262,165.46,165.43,0.17]
[1717454653542,7.6263,165.45,165.42,9.07412881]
[1717454653753,7.6263,165.45,165.42,9.07413934]
[1717454654625,5.39,165.44,165.42,9.07413934]
[1717454654947,7.6263,165.45,165.42,9.07413934]
[1717454655651,2.2363,165.45,165.42,9.07413934]
[1717454656446,22.2363,165.45,165.42,9.07413934]
[1717454656752,2.2363,165.45,165.42,9.07413934]
[1717454657134,22.2363,165.45,165.42,9.07413934]
[1717454658342,20.0,165.45,165.42,9.07413934]
[1717454658636,20.0,165.45,165.43,0.17]
[1717454658840,5.39,165.47,165.43,0.17]
[1717454659021,20.0,165.46,165.43,0.17]
[1717454659434,22.2361,165.46,165.43,0.17]
[1717454659622,27.6261,165.46,165.43,0.17]
[1717454663545,20.0,165.46,165.43,0.17]
[1717454663756,7.626,165.48,165.43,0.17]
[1717454663757,7.626,165.48,165.43,0.34]
[1717454664049,20.0,165.47,165.43,0.34]
[1717454664648,22.236,165.47,165.43,0.34]
[1717454665158,2.236,165.47,165.43,0.34]
[1717454665861,22.236,165.47,165.43,0.34]
[1717454671669,20.0,165.47,165.44,6.4388]
[1717454671874,2.2359,165.48,165.45,0.34]
[1717454672079,22.2359,165.48,165.45,0.34]
[1717454672570,22.2359,165.48,165.45,9.41418369]
[1717454673671,22.2359,165.48,165.45,0.34]
[1717454673875,22.2359,165.48,165.45,9.41406042]
[1717454676770,2.236,165.47,165.45,9.41406042]
[1717454680264,2.236,165.47,165.45,9.41406223]
[1717454688179,2.236,165.47,165.45,9.41406249]
[1717454690885,2.236,165.47,165.45,0.34]
[1717454697880,2.2359,165.48,165.45,0.34]
[1717454699098,2.2359,165.48,165.45,9.41400554]
[1717454701172,8.9403,165.55,165.46,6.4206]
[1717454701505,2.2355,165.51,165.47,9.41400554]
[1717454702187,2.2356,165.5,165.48,9.07400554]
[1717454703186,2.2356,165.5,165.47,9.41400554]
[1717454704399,2.2355,165.51,165.47,15.89810554]
[1717454704585,2.2355,165.51,165.47,21.28810554]
[1717454704790,2.2355,165.51,165.48,9.07400554]
[1717454705085,2.2355,165.51,165.49,0.34]
[1717454705291,2.2355,165.51,165.47,21.28810554]
[1717454705498,2.2355,165.51,165.47,15.89810554]
[1717454705682,2.2357,165.5,165.47,9.41400554]
[1717454706002,2.2357,165.5,165.47,0.34]
[1717454707393,2.2355,165.51,165.47,0.34]
[1717454708308,2.2356,165.5,165.47,0.34]
[1717454710610,2.2355,165.51,165.47,0.34]
[1717454712994,2.2355,165.51,165.46,9.41279106]
[1717454713694,2.2355,165.51,165.46,21.35849106]
[1717454714318,2.2355,165.51,165.46,18.2046476]
[1717454715283,2.2355,165.51,165.47,6.5501]
[1717454715608,2.2355,165.51,165.48,0.34]
[1717454715791,22.2355,165.51,165.48,0.34]
[1717454715988,2.2355,165.51,165.48,0.34]
[1717454716917,2.2355,165.51,165.48,6.8901]
[1717454718288,2.2355,165.51,165.48,15.9629476]
[1717454718488,2.2355,165.51,165.48,15.96139962]
[1717454719086,2.2355,165.51,165.48,9.41129962]
[1717454721508,0.2,165.54,165.48,15.82299962]
[1717454721710,2.4351,165.54,165.49,11.8017]
[1717454721889,0.2,165.54,165.51,5.39]
[1717454722214,0.2,165.54,165.5,18.05859962]
[1717454722215,0.2,165.54,165.52,6.767569]
[1717454722587,0.2,165.54,165.52,1.377569]
[1717454723601,0.2,165.54,165.52,13.076269]
[1717454725298,0.2,165.54,165.53,0.17]
[1717454726635,0.2,165.54,165.53,5.56]
[1717454726919,0.2,165.54,165.53,5.73]
[1717454729299,0.2,165.54,165.53,12.1824]
[1717454733694,0.2,165.54,165.53,6.7924]
[1717454734024,0.2,165.54,165.53,12.1824]
[1717454737537,0.2,165.54,165.53,6.7924]
[1717454737831,0.2,165.54,165.53,12.1824]
[1717454746246,0.2,165.54,165.53,5.73]
[1717454746837,0.2,165.54,165.53,0.34]
[1717454750145,0.2,165.54,165.52,5.73]
[1717454753757,0.2,165.54,165.52,7.9653]
[1717454755050,0.2,165.54,165.53,5.39]
[1717454755241,0.2,165.54,165.53,5.73]
[1717454758157,0.2,165.54,165.53,6.65676741]
[1717454764035,0.2,165.54,165.53,8.89196741]
[1717454764346,0.2,165.54,165.53,17.95606827]
[1717454765155,0.2,165.54,165.53,20.17508551]
[1717454766254,0.2,165.54,165.53,11.11145844]
[1717454768358,0.2,165.54,165.53,190.39265844]
[1717454768564,0.2,165.54,165.53,210.50965844]
[1717454769655,0.8084826,165.56,165.55,178.5995]
[1717454769862,0.2,165.64,165.61,2.2341]
[1717454770062,0.2,165.64,165.62,6.65676741]
[1717454770270,0.2,165.64,165.62,7.964]
[1717454770485,0.2,165.64,165.62,5.73]
[1717454770666,0.2,165.64,165.62,0.34]
[1717454772060,0.2,165.64,165.62,2.574]
[1717454773059,0.2,165.64,165.62,7.964]
[1717454777178,0.2,165.64,165.63,7.6238]
[1717454777504,0.2,165.64,165.63,7.9638]
[1717454778681,0.2,165.64,165.63,0.34]
[1717454778869,0.2,165.64,165.61,156.25]
[1717454778870,0.2,165.64,165.62,5.73]
[1717454779086,0.2,165.64,165.62,7.964]
[1717454784906,0.2,165.64,165.63,2.2338]
[1717454785081,0.2,165.64,165.63,2.5738]
[1717454785467,0.2,165.64,165.63,7.9638]
[1717454787475,0.2,165.64,165.63,5.73]
[1717454788287,0.2,165.64,165.63,0.34]
[1717454788506,0.2,165.64,165.63,2.5738]
[1717454796008,0.2,165.64,165.63,0.34]
[1717454796311,0.2,165.64,165.57,36.27]
[1717454796489,2.2339,165.63,165.59,5.39]
[1717454796689,2.4338,165.64,165.59,5.39]
[1717454797107,0.2,165.64,165.58,2.2345]
[1717454797308,2.2339,165.63,165.58,7.6245]
[1717454797489,2.4338,165.64,165.58,7.6245]
[1717454797692,7.8238,165.64,165.59,2.2344]
[1717454798616,2.4338,165.64,165.6,0.17]
[1717454798792,2.4338,165.64,165.59,0.17]
[1717454798988,2.4338,165.64,165.59,0.34]
[1717454799201,2.2339,165.63,165.59,0.34]
[1717454799590,8.776,165.63,165.59,0.34]
[1717454800717,2.234,165.62,165.59,0.34]
[1717454801016,2.234,165.62,165.58,0.34]
[1717454801017,6.5421,165.62,165.58,0.34]
[1717454801218,2.2339,165.63,165.58,0.34]
[1717454801421,2.2339,165.63,165.58,2.5745]
[1717454801604,2.4338,165.64,165.58,7.5945]
[1717454802998,2.2339,165.63,165.58,7.5945]
[1717454803490,2.4338,165.64,165.58,5.36]
[1717454803695,2.4338,165.64,165.59,2.2344]
[1717454803895,2.4338,165.64,165.6,0.34]
[1717454804113,2.4338,165.64,165.58,7.5945]
[1717454804301,2.2339,165.63,165.58,7.5945]
[1717454805219,2.2339,165.63,165.58,5.36]
[1717454806312,2.2339,165.63,165.58,7.5945]
[1717454807698,2.4338,165.64,165.58,7.5945]
[1717454808725,2.4338,165.64,165.59,5.02]
[1717454808924,2.4338,165.64,165.6,0.34]
[1717454809911,2.4338,165.64,165.59,5.36]
[1717454810111,2.2339,165.63,165.59,5.36]
[1717454810640,2.2339,165.63,165.59,0.34]
[1717454812329,22.2339,165.63,165.59,0.34]
[1717454818449,20.0,165.63,165.59,0.34]
[1717454818860,22.2339,165.63,165.59,0.34]
[1717454826654,22.2339,165.63,165.59,9.39141225]
[1717454826856,0.2,165.64,165.59,45.66141225]
[1717454827058,0.2,165.64,165.61,2.2341]
[1717454827266,0.2,165.64,165.62,5.36]
[1717454827441,0.2,165.64,165.62,7.5938]
[1717454827641,0.2,165.64,165.63,7.2538]
[1717454827827,0.2,165.64,165.63,7.5938]
[1717454828033,0.2,165.64,165.63,10.00828011]
[1717454829145,0.2,165.64,165.63,10.93307092]
[1717454832142,0.2,165.64,165.63,8.51859081]
[1717454838950,0.2,165.64,165.63,7.5938]
[1717454839350,0.2,165.64,165.63,8.51868005]
[1717454841771,0.2,165.64,165.63,44.78779988]
[1717454841949,0.2,165.64,165.63,53.83533518]
[1717454842271,0.2,165.64,165.63,44.78779988]
[1717454842944,0.2,165.64,165.63,39.76779988]
[1717454843164,0.2,165.64,165.63,8.17779988]
[1717454843360,0.2,165.64,165.63,7.2538]
[1717454843581,0.2,165.64,165.63,2.2338]
[1717454844053,0.2,165.64,165.63,7.2538]
[1717454844252,0.2,165.64,165.63,7.4238]
[1717454844707,0.2,165.64,165.63,7.5938]
[1717454845378,0.2,165.64,165.63,2.5738]
[1717454845574,0.2,165.64,165.63,7.5938]
[1717454846084,0.2,165.64,165.63,8.51759251]
[1717454846291,0.2,165.64,165.63,17.55391104]
[1717454846851,0.2,165.64,165.63,8.51759251]
[1717454847261,0.2,165.64,165.63,17.55308705]
[1717454847871,0.2,165.64,165.63,8.51759251]
[1717454849178,0.2,165.64,165.63,17.55248199]
[1717454849550,0.2,165.64,165.63,10.29868199]
[1717454849752,0.2,165.64,165.63,0.34]
[1717454850069,0.2,165.64,165.62,0.34]
[1717454850264,0.2,165.64,165.61,9.03488948]
[1717454850664,0.2,165.64,165.61,2.2341]
[1717454850873,0.2,165.64,165.61,11.26898948]
[1717454851795,0.2,165.64,165.62,0.34]
[1717454852892,2.4337,165.64,165.62,0.34]
[1717454853087,2.4337,165.64,165.61,0.34]
[1717454853589,0.2,165.64,165.61,0.34]
[1717454853891,2.4337,165.64,165.61,0.34]
[1717454854055,2.2339,165.63,165.61,0.34]
[1717454854662,8.7178,165.64,165.61,0.34]
[1717454855402,8.7178,165.64,165.6,9.38264993]
[1717454856389,8.7178,165.64,165.6,9.38215416]
[1717454856689,8.7178,165.64,165.6,0.34]
[1717454857592,8.7178,165.64,165.6,9.38215416]
[1717454863891,8.7178,165.64,165.61,9.96879201]
[1717454864066,8.7178,165.64,165.61,9.04425479]
[1717454864709,0.2,165.64,165.6,9.38425479]
[1717454865001,0.2,165.64,165.61,0.92461049]
[1717454865185,0.2,165.64,165.6,9.38425479]
[1717454867991,2.4337,165.64,165.6,9.38425479]
[1717454868201,22.4337,165.64,165.6,9.38425479]
[1717454868415,2.4337,165.64,165.61,0.92466252]
[1717454868706,2.4337,165.64,165.6,9.38425479]
[1717454868874,2.4337,165.64,165.61,9.96877366]
[1717454869076,2.4337,165.64,165.61,9.04425479]
[1717454870295,22.4337,165.64,165.61,9.04425479]
[1717454870494,2.2339,165.63,165.61,9.04425479]
[1717454870974,0.2,165.64,165.6,5.36]
[1717454870975,2.4338,165.64,165.6,5.36]
[1717454871183,2.4338,165.64,165.61,0.92461741]
[1717454871385,2.4338,165.64,165.6,14.40425479]
[1717454871584,2.4338,165.64,165.61,0.92456345]
[1717454871794,2.4338,165.64,165.6,14.40425479]
[1717454871974,2.4338,165.64,165.61,0.9246034]
[1717454872307,2.4338,165.64,165.6,5.36]
[1717454872481,2.4338,165.64,165.61,0.92463381]
[1717454872675,2.4338,165.64,165.6,5.36]
[1717454872875,2.4338,165.64,165.61,0.92463444]
[1717454873174,2.4338,165.64,165.6,5.36]
[1717454873390,2.4338,165.64,165.61,0.92461744]
[1717454873596,2.4338,165.64,165.6,5.36]
[1717454873794,2.4338,165.64,165.61,0.92461688]
[1717454873983,2.4338,165.64,165.6,5.36]
[1717454874183,2.4338,165.64,165.61,0.92462317]
[1717454874490,2.4338,165.64,165.6,14.4053477]
[1717454874790,2.4338,165.64,165.61,0.92465943]
[1717454874998,2.4338,165.64,165.6,9.38560629]
[1717454876506,2.4338,165.64,165.6,9.38460374]
[1717454877806,2.4338,165.64,165.6,0.34]
[1717454883690,2.2339,165.63,165.6,0.34]
[1717454885717,2.4338,165.64,165.6,0.34]
[1717454888301,2.4338,165.64,165.6,9.38567673]
[1717454888492,2.4338,165.64,165.6,0.34]
[1717454891827,2.4338,165.64,165.6,9.38567673]
[1717454894745,0.2,165.64,165.6,9.38567673]
[1717454894903,0.2,165.64,165.62,14.05567673]
[1717454895220,0.2,165.64,165.63,14.39567673]
[1717454895724,0.2,165.64,165.63,16.62947673]
[1717454895915,0.2,165.64,165.63,7.5838]
[1717454896122,0.2,165.64,165.63,16.63401954]
[1717454897602,0.2,165.64,165.63,7.5838]
[1717454898508,0.2,165.64,165.63,5.35]
[1717454898723,0.2,165.64,165.63,6.18540515]
[1717454898902,0.2,165.64,165.63,15.23480336]
[1717454899298,0.2,165.64,165.63,15.23496077]
[1717454900205,0.2,165.64,165.63,14.39955562]
[1717454900727,0.2,165.64,165.63,9.38955562]
[1717454900898,0.2,165.64,165.63,14.39955562]
[1717454901521,0.2,165.64,165.63,9.38955562]
[1717454901730,0.2,165.64,165.63,14.39955562]
[1717454903219,0.2,165.64,165.63,5.35]
[1717454903522,0.2,165.64,165.63,0.34]
[1717454903836,0.2,165.64,165.63,14.40052364]
[1717454905237,0.2,165.64,165.63,16.63432364]
[1717454905821,0.2,165.64,165.63,9.39052364]